fUSD/lending_fUSD_20241222
["ID","MTS","AMOUNT","RATE_DAILY","PERIOD"]
[346303823,1734881449031,-500.0,0.00019452,2]
[346303824,1734881449040,-261.38098769,0.00019452,2]
[346303825,1734881449049,-500.0,0.00019452,2]
[346303826,1734881449058,-500.0,0.00019452,2]
[346303827,1734881449067,-508.56550408,0.00019452,2]
[346303828,1734881449077,-505.77561848,0.00019452,2]
[346303829,1734881449086,-500.0,0.00019452,2]
[346303830,1734881449095,-886.93,0.00019452,2]
[346303831,1734881449105,-552.05,0.00019452,2]
[346303832,1734881449114,-574.00231945,0.00019452,2]
[346303833,1734881449123,-553.05,0.00019452,2]
[346303834,1734881449132,-500.0,0.00019452,2]
[346303835,1734881449142,-500.0,0.00019452,2]
[346303836,1734881449150,-608.7,0.00019452,2]
[346303837,1734881449159,-1013.19,0.00019452,2]
[346303838,1734881449169,-500.0,0.00019452,2]
[346303839,1734881449178,-500.0,0.00019452,2]
[346303840,1734881449187,-500.0,0.00019452,2]
[346303841,1734881449198,-623.12,0.00019452,2]
[346303842,1734881449207,-500.0,0.00019452,2]
[346303843,1734881449346,-500.0,0.00019452,2]
[346303844,1734881449357,-500.0,0.00019452,2]
[346303845,1734881449366,-500.0,0.00019452,2]
[346303846,1734881449376,-500.0,0.00019452,2]
[346303847,1734881449386,-500.0,0.00019452,2]
[346303848,1734881449395,-989.27,0.00019452,2]
[346303849,1734881449404,-500.0,0.00019452,2]
[346303850,1734881449414,-500.0,0.00019452,2]
[346303851,1734881449423,-500.0,0.00019452,2]
[346303852,1734881449432,-500.0,0.00019452,2]
[346303853,1734881449444,-500.0,0.00019452,2]
[346303854,1734881449453,-500.0,0.00019452,2]
[346303855,1734881449463,-500.0,0.00019452,2]
[346303856,1734881449472,-500.0,0.00019452,2]
[346303857,1734881449481,-500.0,0.00019452,2]
[346303858,1734881449491,-555.74,0.00019452,2]
[346303859,1734881449500,-500.0,0.00019452,2]
[346303860,1734881449510,-500.0,0.00019452,2]
[346303861,1734881449519,-502.62113078,0.00019452,2]
[346303862,1734881449528,-500.0,0.00019452,2]
[346303863,1734881449537,-828.13,0.00019452,2]
[346303864,1734881449546,-500.0,0.00019452,2]
[346303865,1734881449556,-500.0,0.00019452,2]
[346303866,1734881449565,-500.0,0.00019452,2]
[346303867,1734881449575,-822.65,0.00019452,2]
[346303868,1734881449584,-500.0,0.00019452,2]
[346303869,1734881449593,-507.01909356,0.00019452,2]
[346303870,1734881449606,-500.0,0.00019452,2]
[346303871,1734881449615,-500.0,0.00019452,2]
[346303872,1734881449624,-291.218995,0.00019452,2]
[346303873,1734881449634,-500.0,0.00019452,2]
[346303874,1734881449643,-616.63,0.00019452,2]
[346303875,1734881449653,-509.01,0.00019452,2]
[346303876,1734881449663,-500.0,0.00019452,2]
[346303877,1734881449672,-759.28,0.00019452,2]
[346303878,1734881449682,-500.0,0.00019452,2]
[346303879,1734881449694,-10411.86,0.00019452,2]
[346303880,1734881449704,-500.0,0.00019452,2]
[346303881,1734881449713,-29542.85,0.00019452,2]
[346303882,1734881449723,-500.0,0.00019452,2]
[346303883,1734881449733,-500.0,0.00019452,2]
[346303884,1734881449743,-500.0,0.00019452,2]
[346303885,1734881449752,-1582.31,0.00019452,2]
[346303886,1734881449762,-500.0,0.00019452,2]
[346303887,1734881449775,-578.17,0.00019452,2]
[346303888,1734881449784,-500.0,0.00019452,2]
[346303889,1734881449794,-500.0,0.00019452,2]
[346303890,1734881449803,-500.0,0.00019452,2]
[346303891,1734881449815,-500.0,0.00019452,2]
[346303892,1734881449824,-500.0,0.00019452,2]
[346303893,1734881449834,-500.0,0.00019452,2]
[346303894,1734881449843,-500.0,0.00019452,2]
[346303895,1734881449853,-500.0,0.00019452,2]
[346303896,1734881449863,-891.78,0.00019452,2]
[346303897,1734881449873,-500.0,0.00019452,2]
[346303898,1734881449883,-500.0,0.00019452,2]
[346303899,1734881449892,-500.0,0.00019452,2]
[346303900,1734881449902,-500.0,0.00019452,2]
[346303901,1734881449911,-3581.2,0.00019452,2]
[346303902,1734881449921,-1107.95,0.00019452,2]
[346303903,1734881449931,-520.85,0.00019452,2]
[346303904,1734881449944,-1017.92,0.00019452,2]
[346303905,1734881449953,-500.0,0.00019452,2]
[346303906,1734881449962,-618.57,0.00019452,2]
[346303907,1734881449971,-500.0,0.00019452,2]
[346303908,1734881449981,-500.0,0.00019452,2]
[346303909,1734881449992,-500.0,0.00019452,2]
[346303910,1734881450001,-500.0,0.00019452,2]
[346303911,1734881450013,-597.67,0.00019452,2]
[346303912,1734881450022,-600.56,0.00019452,2]
[346303913,1734881450032,-2153.46,0.00019452,2]
[346303914,1734881450042,-2582.39,0.00019452,2]
[346303915,1734881450052,-632.15,0.00019452,2]
[346303916,1734881450061,-797.39,0.00019452,2]
[346303917,1734881450071,-504.67427316,0.00019452,2]
[346303918,1734881450082,-631.85596521,0.00019452,2]
[346303919,1734881450093,-500.0,0.00019452,2]
[346303920,1734881450103,-500.0,0.00019452,2]
[346303921,1734881450114,-500.0,0.00019452,2]
[346303922,1734881450123,-760.95,0.00019452,2]
[346303923,1734881450134,-500.0,0.00019452,2]
[346303924,1734881450143,-2950.68,0.00019452,2]
[346303925,1734881450153,-635.96184477,0.00019452,2]
[346303926,1734881450162,-500.0,0.00019452,2]
[346303927,1734881450171,-500.0,0.00019452,2]
[346303928,1734881450181,-6006.68,0.00019452,2]
[346303929,1734881450191,-500.0,0.00019452,2]
[346303930,1734881450200,-1950.81,0.00019452,2]
[346303931,1734881450210,-500.0,0.00019452,2]
[346303932,1734881450220,-500.0,0.00019452,2]
[346303933,1734881450229,-500.0,0.00019452,2]
[346303934,1734881450239,-928.99,0.00019452,2]
[346303935,1734881450248,-566.55,0.00019452,2]
[346303936,1734881450258,-500.0,0.00019452,2]
[346303937,1734881450268,-866.58,0.00019452,2]
[346303938,1734881450278,-500.0,0.00019452,2]
[346303939,1734881450290,-500.0,0.00019452,2]
[346303940,1734881450299,-777.05,0.00019452,2]
[346303941,1734881450308,-500.0,0.00019452,2]
[346303942,1734881450318,-500.0,0.00019452,2]
[346303943,1734881450327,-36264.67,0.00019452,2]
[346303944,1734881450337,-615.29,0.00019452,2]
[346303945,1734881450347,-642.56,0.00019452,2]
[346303946,1734881450356,-249.31,0.00019452,2]
[346303947,1734881450365,-500.0,0.00019452,2]
[346303948,1734881450374,-586.72,0.00019452,2]
[346303949,1734881450384,-500.0,0.00019452,2]
[346303950,1734881450393,-1347.11,0.00019452,2]
[346303951,1734881450402,-5695.88,0.00019452,2]
[346303952,1734881450411,-500.0,0.00019452,2]
[346303953,1734881450420,-195.30827493,0.00019452,2]
[346303954,1734881450430,-500.0,0.00019452,2]
[346303955,1734881450440,-50596.19,0.00019452,2]
[346303956,1734881450449,-500.0,0.00019452,2]
[346303957,1734881450461,-500.0,0.00019452,2]
[346303958,1734881450471,-8820.76,0.00019452,2]
[346303959,1734881450480,-500.0,0.00019452,2]
[346303960,1734881450489,-500.0,0.00019452,2]
[346303961,1734881450498,-500.0,0.00019452,2]
[346303962,1734881450507,-500.0,0.00019452,2]
[346303963,1734881450517,-500.0,0.00019452,2]
[346303964,1734881450526,-682.03,0.00019452,2]
[346303965,1734881450536,-515.93,0.00019452,2]
[346303966,1734881450546,-500.0,0.00019452,2]
[346303967,1734881450555,-1437.44,0.00019452,2]
[346303968,1734881450565,-500.0,0.00019452,2]
[346303969,1734881450575,-500.0,0.00019452,2]
[346303970,1734881450584,-945.81,0.00019452,2]
[346303971,1734881450593,-646.11,0.00019452,2]
[346303972,1734881450603,-500.0,0.00019452,2]
[346303973,1734881450612,-829.13,0.00019452,2]
[346303974,1734881450622,-603.72,0.00019452,2]
[346303975,1734881450631,-4345.75,0.00019452,2]
[346303976,1734881450641,-663.72,0.00019452,2]
[346303977,1734881450650,-6113.02,0.00019452,2]
[346303978,1734881450659,-1355.16,0.00019452,2]
[346303979,1734881450669,-9131.21,0.00019452,2]
[346303980,1734881450678,-500.0,0.00019452,2]
[346303981,1734881450690,-760.11,0.00019452,2]
[346303982,1734881450699,-752.19,0.00019452,2]
[346303983,1734881450709,-500.0,0.00019452,2]
[346303984,1734881450718,-500.0,0.00019452,2]
[346303985,1734881450728,-6436.96,0.00019452,2]
[346303986,1734881450737,-500.0,0.00019452,2]
[346303987,1734881450746,-829.19,0.00019452,2]
[346303988,1734881450755,-683.95,0.00019452,2]
[346303989,1734881450765,-703.93,0.00019452,2]
[346303990,1734881450779,-192.78,0.00019452,2]
[346303991,1734881450788,-500.0,0.00019452,2]
[346303992,1734881450797,-82240.9,0.00019452,2]
[346303993,1734881450807,-929.49,0.00019452,2]
[346303994,1734881450816,-1082.63,0.00019452,2]
[346303995,1734881450825,-3271.98,0.00019452,2]
[346303996,1734881450833,-14649.77,0.00019452,2]
[346303997,1734881450843,-500.0,0.00019452,2]
[346303998,1734881450852,-153.37808235,0.00019452,2]
[346303999,1734881450861,-500.0,0.00019452,2]
[346304000,1734881450870,-3091.65,0.00019452,2]
[346304001,1734881450879,-23276.36,0.00019452,2]
[346304002,1734881450888,-1401.52,0.00019452,2]
[346304003,1734881450897,-8975.57,0.00019452,2]
[346304004,1734881450906,-953.7,0.00019452,2]
[346304005,1734881450914,-500.0,0.00019452,2]
[346304006,1734881450923,-500.0,0.00019452,2]
[346304007,1734881450932,-2934.22,0.00019452,2]
[346304008,1734881450942,-1629.65,0.00019452,2]
[346304009,1734881450950,-21960.92,0.00019452,2]
[346304010,1734881450959,-500.0,0.00019452,2]
[346304011,1734881450968,-1075.74,0.00019452,2]
[346304012,1734881450977,-581.11,0.00019452,2]
[346304013,1734881450987,-500.0,0.00019452,2]
[346304014,1734881450996,-754.14,0.00019452,2]
[346304015,1734881451005,-2484.39,0.00019452,2]
[346304016,1734881451014,-500.0,0.00019452,2]
[346304017,1734881451023,-5488.75,0.00019452,2]
[346304018,1734881451033,-500.0,0.00019452,2]
[346304019,1734881451042,-701.23,0.00019452,2]
[346304020,1734881451052,-1647.78,0.00019452,2]
[346304021,1734881451061,-500.0,0.00019452,2]
[346304022,1734881451070,-7971.0,0.00019452,2]
[346304023,1734881451079,-632.65,0.00019452,2]
[346304024,1734881451088,-500.0,0.00019452,2]
[346304025,1734881451098,-593.34,0.00019452,2]
[346304026,1734881451107,-500.0,0.00019452,2]
[346304027,1734881451116,-1334.97,0.00019452,2]
[346304028,1734881451126,-609.95,0.00019452,2]
[346304029,1734881451135,-2503.31,0.00019452,2]
[346304030,1734881451145,-1493.49,0.00019452,2]
[346304031,1734881451154,-500.0,0.00019452,2]
[346304032,1734881451163,-2016.09,0.00019452,2]
[346304033,1734881451173,-194.6195156,0.00019452,2]
[346304034,1734881451182,-801.38,0.00019452,2]
[346304035,1734881451192,-500.0,0.00019452,2]
[346304036,1734881451201,-8019.92,0.00019452,2]
[346304037,1734881451210,-6945.02,0.00019452,2]
[346304038,1734881451219,-500.0,0.00019452,2]
[346304039,1734881451229,-4387.5,0.00019452,2]
[346304040,1734881451239,-500.0,0.00019452,2]
[346304041,1734881451248,-500.0,0.00019452,2]
[346304042,1734881451257,-558.77961003,0.00019452,2]
[346304043,1734881451266,-500.0,0.00019452,2]
[346304044,1734881451275,-638.78,0.00019452,2]
[346304045,1734881451285,-498.53474607,0.00019452,2]
[346304046,1734881451294,-500.0,0.00019452,2]
[346304047,1734881451303,-5309.39,0.00019452,2]
[346304048,1734881451313,-646.98,0.00019452,2]
[346304049,1734881451322,-778.03,0.00019452,2]
[346304050,1734881451331,-3781.1,0.00019452,2]
[346304051,1734881451340,-500.0,0.00019452,2]
[346304052,1734881451350,-500.0,0.00019452,2]
[346304053,1734881451359,-1057.33,0.00019452,2]
[346304054,1734881451368,-500.0,0.00019452,2]
[346304055,1734881451377,-2039.69,0.00019452,2]
[346304056,1734881451386,-842.54,0.00019452,2]
[346304057,1734881451395,-500.0,0.00019452,2]
[346304058,1734881451404,-28779.14,0.00019452,2]
[346304059,1734881451414,-1138.14,0.00019452,2]
[346304060,1734881451424,-500.0,0.00019452,2]
[346304061,1734881451433,-500.0,0.00019452,2]
[346304062,1734881451443,-2055.22,0.00019452,2]
[346304063,1734881451452,-500.0,0.00019452,2]
[346304064,1734881451463,-500.0,0.00019452,2]
[346304065,1734881451472,-734.62,0.00019452,2]
[346304066,1734881451608,-823.27,0.00019452,2]
[346304067,1734881451619,-523.28,0.00019452,2]
[346304068,1734881451628,-4351.28,0.00019452,2]
[346304069,1734881451638,-500.0,0.00019452,2]
[346304070,1734881451647,-500.0,0.00019452,2]
[346304071,1734881451656,-244.96768433,0.00019452,2]
[346304072,1734881451666,-500.0,0.00019452,2]
[346304073,1734881451675,-500.0,0.00019452,2]
[346304074,1734881451684,-5194.41337268,0.00019452,2]
[346304075,1734881451694,-11046.38693033,0.00019454,2]
[346304076,1734881451703,-5194.41337268,0.00019455,2]
[346304077,1734881451713,-5194.41337268,0.0001946,2]
[346304078,1734881451722,-11046.38693033,0.0001946,2]
[346304079,1734881451732,-2632.58141026,0.00019464,2]
[346304080,1734881451742,-11046.38693033,0.00019465,2]
[346304081,1734881451751,-8855.04656178,0.00019465,2]
[346304082,1734881451761,-1435.9534965,0.00019467,2]
[346304083,1734881451773,-2632.58141026,0.00019467,2]
[346304084,1734881451783,-3016.5968238,0.00019469,2]
[346304085,1734881451792,-1435.9534965,0.00019471,2]
[346304086,1734881451802,-8855.04656178,0.00019473,2]
[346304087,1734881451811,-2632.58141026,0.00019477,2]
[346304088,1734881451821,-3016.5968238,0.00019478,2]
[346304089,1734881451831,-3016.5968238,0.00019481,2]
[346304090,1734881451840,-3016.5968238,0.00019484,2]
[346304091,1734881451850,-8855.04656178,0.00019484,2]
[346304092,1734881451860,-2632.58141026,0.00019484,2]
[346304093,1734881451870,-5194.41337268,0.00019488,2]
[346304094,1734881451879,-480616.10302278,0.0001949,5]
[346304095,1734881451890,-1435.9534965,0.00019495,2]
[346304096,1734881451899,-1435.9534965,0.00019496,2]
[346304097,1734881451909,-1435.9534965,0.00019496,2]
[346304098,1734881451919,-8855.04656178,0.00019499,2]
[346304099,1734881451928,-1435.9534965,0.00019499,2]
[346304100,1734881451938,-208.0,0.000195,2]
[346304101,1734881451950,-210.0,0.000195,2]
[346304102,1734881451959,-150.0,0.000195,4]
[346304103,1734881451969,-203.0,0.000195,2]
[346304104,1734881451978,-153.0,0.00019517,2]
[346304105,1734881451987,-423.2763481,0.0001957,2]
[346304106,1734881451997,-1021.12080574,0.000196,2]
[346304107,1734881452006,-1068.34968752,0.000196,2]
[346304108,1734881452016,-1047.0457448,0.000196,2]
[346304109,1734881452026,-1121.48490818,0.000196,2]
[346304110,1734881452035,-1028.21293014,0.000196,2]
[346304111,1734881452044,-617055.34019287,0.000196,2]
[346304112,1734881452054,-1467.06986921,0.00019626,2]
[346304113,1734881452064,-245.57175388,0.0001969,2]
[346304114,1734881452073,-1920.31,0.00019699,2]
[346304115,1734881452083,-1920.31,0.00019699,2]
[346304116,1734881452092,-1920.31,0.00019699,2]
[346304117,1734881452102,-1920.31,0.00019699,2]
[346304118,1734881452111,-837941.58728871,0.000197,2]
[346304119,1734881452121,-456.9,0.000197,2]
[346304120,1734881452130,-250.0,0.000197,2]
[346304121,1734881452139,-250.0,0.000197,2]
[346304122,1734881452148,-250.0,0.000197,2]
[346304123,1734881452158,-250.0,0.000197,2]
[346304124,1734881452167,-250.0,0.000197,2]
[346304125,1734881452176,-250.0,0.000197,2]
[346304126,1734881452186,-250.0,0.000197,2]
[346304127,1734881452197,-250.0,0.000197,2]
[346304128,1734881452206,-250.0,0.000197,2]
[346304129,1734881452216,-250.0,0.000197,2]
[346304130,1734881452226,-250.0,0.000197,2]
[346304131,1734881452235,-250.0,0.000197,2]
[346304132,1734881452245,-250.0,0.000197,2]
[346304133,1734881452254,-250.0,0.000197,2]
[346304134,1734881452263,-250.0,0.000197,2]
[346304135,1734881452273,-250.0,0.000197,2]
[346304136,1734881452282,-250.0,0.000197,2]
[346304137,1734881452291,-250.0,0.000197,2]
[346304138,1734881452301,-250.0,0.000197,2]
[346304139,1734881452311,-250.0,0.000197,2]
[346304140,1734881452320,-250.0,0.000197,2]
[346304141,1734881452329,-250.0,0.000197,2]
[346304142,1734881452339,-250.0,0.000197,2]
[346304143,1734881452348,-250.0,0.000197,2]
[346304144,1734881452358,-250.0,0.000197,2]
[346304145,1734881452368,-250.0,0.000197,2]
[346304146,1734881452378,-250.0,0.000197,2]
[346304147,1734881452387,-250.0,0.000197,2]
[346304148,1734881452397,-250.0,0.000197,2]
[346304149,1734881452407,-250.0,0.000197,2]
[346304150,1734881452417,-250.0,0.000197,2]
[346304151,1734881452426,-250.0,0.000197,2]
[346304152,1734881452436,-250.0,0.000197,2]
[346304153,1734881452446,-250.0,0.000197,2]
[346304154,1734881452456,-250.0,0.000197,2]
[346304155,1734881452466,-1467.06986921,0.00019717,2]
[346304156,1734881452475,-1920.31,0.00019724,2]
[346304157,1734881452485,-619.41,0.00019725,2]
[346304158,1734881452495,-1585.3,0.00019725,2]
[346304159,1734881452506,-1917.94,0.00019725,2]
[346304160,1734881452516,-812.1,0.00019725,2]
[346304161,1734881452525,-11737.39,0.00019725,2]
[346304162,1734881452535,-1135.46,0.00019725,2]
[346304163,1734881452544,-500.0,0.00019725,2]
[346304164,1734881452554,-1000.0,0.00019725,2]
[346304165,1734881452564,-712.18,0.00019725,2]
[346304166,1734881452573,-500.0,0.00019725,2]
[346304167,1734881452583,-1317.01,0.00019725,2]
[346304168,1734881452593,-3059.92,0.00019725,2]
[346304169,1734881452603,-1920.31,0.00019725,2]
[346304170,1734881452612,-500.0,0.00019726,2]
[346304171,1734881452621,-500.0,0.00019726,2]
[346304172,1734881452631,-500.0,0.00019726,2]
[346304173,1734881452641,-500.0,0.00019726,2]
[346304174,1734881452650,-500.0,0.00019726,2]
[346304175,1734881452660,-500.0,0.00019726,2]
[346304176,1734881452670,-500.0,0.00019726,2]
[346304177,1734881452679,-500.0,0.00019726,2]
[346304178,1734881452689,-500.0,0.00019726,2]
[346304179,1734881452700,-500.0,0.00019726,2]
[346304180,1734881452710,-500.0,0.00019726,2]
[346304181,1734881452720,-500.0,0.00019726,2]
[346304182,1734881452729,-500.0,0.00019726,2]
[346304183,1734881452739,-500.0,0.00019726,2]
[346304184,1734881452749,-500.0,0.00019726,2]
[346304185,1734881452759,-500.0,0.00019726,2]
[346304186,1734881452771,-500.0,0.00019726,2]
[346304187,1734881452781,-500.0,0.00019726,2]
[346304188,1734881452791,-513.59,0.00019726,2]
[346304189,1734881452800,-205.42492921,0.00019726,2]
[346304190,1734881452811,-500.0,0.00019726,2]
[346304191,1734881452820,-500.0,0.00019726,2]
[346304192,1734881452829,-565.48,0.00019726,2]
[346304193,1734881452839,-500.0,0.00019726,2]
[346304194,1734881452850,-804.27,0.00019726,2]
[346304195,1734881452861,-684.212988,0.00019726,2]
[346304196,1734881452870,-3303.604918,0.00019726,2]
[346304197,1734881452879,-545.92564934,0.00019726,2]
[346304198,1734881452890,-500.0,0.00019726,2]
[346304199,1734881452900,-500.0,0.00019726,2]
[346304200,1734881452909,-500.0,0.00019726,2]
[346304201,1734881452920,-333.13825786,0.00019726,2]
[346304202,1734881452929,-500.0,0.00019726,2]
[346304203,1734881452940,-500.0,0.00019726,2]
[346304204,1734881452952,-500.0,0.00019726,2]
[346304205,1734881452961,-500.0,0.00019726,2]
[346304206,1734881452971,-1179.12,0.00019726,2]
[346304207,1734881452980,-579.64,0.00019726,2]
[346304208,1734881452989,-819.04,0.00019726,2]
[346304209,1734881452998,-870.34,0.00019726,2]
[346304210,1734881453007,-500.0,0.00019726,2]
[346304211,1734881453017,-500.0,0.00019726,2]
[346304212,1734881453026,-500.0,0.00019726,2]
[346304213,1734881453035,-556.13,0.00019726,2]
[346304214,1734881453044,-500.0,0.00019726,2]
[346304215,1734881453053,-500.0,0.00019726,2]
[346304216,1734881453063,-216.63842489,0.00019726,2]
[346304217,1734881453072,-500.0,0.00019726,2]
[346304218,1734881453081,-500.0,0.00019726,2]
[346304219,1734881453090,-500.0,0.00019726,2]
[346304220,1734881453099,-500.0,0.00019726,2]
[346304221,1734881453108,-500.0,0.00019726,2]
[346304222,1734881453117,-500.0,0.00019726,2]
[346304223,1734881453126,-500.0,0.00019726,2]
[346304224,1734881453135,-500.0,0.00019726,2]
[346304225,1734881453144,-630.08839638,0.00019726,2]
[346304226,1734881453153,-500.0,0.00019726,2]
[346304227,1734881453163,-857.69,0.00019726,2]
[346304228,1734881453172,-547.58,0.00019726,2]
[346304229,1734881453181,-500.0,0.00019726,2]
[346304230,1734881453191,-500.0,0.00019726,2]
[346304231,1734881453200,-500.0,0.00019726,2]
[346304232,1734881453209,-500.0,0.00019726,2]
[346304233,1734881453219,-500.0,0.00019726,2]
[346304234,1734881453228,-540.18,0.00019726,2]
[346304235,1734881453238,-500.0,0.00019726,2]
[346304236,1734881453247,-500.0,0.00019726,2]
[346304237,1734881453256,-500.0,0.00019726,2]
[346304238,1734881453266,-525.71321348,0.00019726,2]
[346304239,1734881453275,-500.0,0.00019726,2]
[346304240,1734881453284,-500.0,0.00019726,2]
[346304241,1734881453293,-500.0,0.00019726,2]
[346304242,1734881453302,-500.0,0.00019726,2]
[346304243,1734881453311,-500.0,0.00019726,2]
[346304244,1734881453320,-876.12,0.00019726,2]
[346304245,1734881453330,-500.0,0.00019726,2]
[346304246,1734881453339,-673.59,0.00019726,2]
[346304247,1734881453348,-500.0,0.00019726,2]
[346304248,1734881453358,-500.0,0.00019726,2]
[346304249,1734881453368,-5159.6,0.00019726,2]
[346304250,1734881453377,-500.0,0.00019726,2]
[346304251,1734881453386,-500.0,0.00019726,2]
[346304252,1734881453396,-500.0,0.00019726,2]
[346304253,1734881453404,-500.0,0.00019726,2]
[346304254,1734881453414,-886.93,0.00019726,2]
[346304255,1734881453423,-552.05,0.00019726,2]
[346304256,1734881453432,-553.05,0.00019726,2]
[346304257,1734881453444,-500.0,0.00019726,2]
[346304258,1734881453455,-500.0,0.00019726,2]
[346304259,1734881453465,-608.7,0.00019726,2]
[346304260,1734881453474,-500.0,0.00019726,2]
[346304261,1734881453483,-1013.19,0.00019726,2]
[346304262,1734881453493,-589.5938794,0.00019726,2]
[346304263,1734881453502,-500.0,0.00019726,2]
[346304264,1734881453511,-623.12,0.00019726,2]
[346304265,1734881453520,-500.0,0.00019726,2]
[346304266,1734881453530,-500.0,0.00019726,2]
[346304267,1734881453539,-500.0,0.00019726,2]
[346304268,1734881453548,-989.27,0.00019726,2]
[346304269,1734881453558,-500.0,0.00019726,2]
[346304270,1734881453567,-500.0,0.00019726,2]
[346304271,1734881453694,-500.0,0.00019726,2]
[346304272,1734881453704,-500.0,0.00019726,2]
[346304273,1734881453713,-500.0,0.00019726,2]
[346304274,1734881453722,-500.0,0.00019726,2]
[346304275,1734881453732,-500.0,0.00019726,2]
[346304276,1734881453742,-555.74,0.00019726,2]
[346304277,1734881453751,-447.81181694,0.00019726,2]
[346304278,1734881453760,-238.66834675,0.00019726,2]
[346304279,1734881453775,-500.0,0.00019726,2]
[346304280,1734881453784,-828.13,0.00019726,2]
[346304281,1734881453792,-500.0,0.00019726,2]
[346304282,1734881453801,-500.0,0.00019726,2]
[346304283,1734881453812,-500.0,0.00019726,2]
[346304284,1734881453821,-822.65,0.00019726,2]
[346304285,1734881453831,-500.0,0.00019726,2]
[346304286,1734881453840,-588.28677955,0.00019726,2]
[346304287,1734881453850,-500.0,0.00019726,2]
[346304288,1734881453861,-500.0,0.00019726,2]
[346304289,1734881453871,-291.218995,0.00019726,2]
[346304290,1734881453880,-616.63,0.00019726,2]
[346304291,1734881453890,-509.01,0.00019726,2]
[346304292,1734881453900,-500.0,0.00019726,2]
[346304293,1734881453911,-759.28,0.00019726,2]
[346304294,1734881453920,-500.0,0.00019726,2]
[346304295,1734881453930,-10411.86,0.00019726,2]
[346304296,1734881453940,-500.0,0.00019726,2]
[346304297,1734881453952,-29542.85,0.00019726,2]
[346304298,1734881453961,-500.0,0.00019726,2]
[346304299,1734881453970,-500.0,0.00019726,2]
[346304300,1734881453979,-500.0,0.00019726,2]
[346304301,1734881453988,-1582.31,0.00019726,2]
[346304302,1734881453999,-500.0,0.00019726,2]
[346304303,1734881454008,-500.0,0.00019726,2]
[346304304,1734881454018,-500.0,0.00019726,2]
[346304305,1734881454027,-500.0,0.00019726,2]
[346304306,1734881454036,-500.0,0.00019726,2]
[346304307,1734881454045,-500.0,0.00019726,2]
[346304308,1734881454054,-500.0,0.00019726,2]
[346304309,1734881454064,-891.78,0.00019726,2]
[346304310,1734881454073,-500.0,0.00019726,2]
[346304311,1734881454083,-500.0,0.00019726,2]
[346304312,1734881454093,-500.0,0.00019726,2]
[346304313,1734881454102,-3581.2,0.00019726,2]
[346304314,1734881454112,-1107.95,0.00019726,2]
[346304315,1734881454121,-520.85,0.00019726,2]
[346304316,1734881454130,-1017.92,0.00019726,2]
[346304317,1734881454139,-500.0,0.00019726,2]
[346304318,1734881454149,-618.57,0.00019726,2]
[346304319,1734881454158,-500.0,0.00019726,2]
[346304320,1734881454167,-500.0,0.00019726,2]
[346304321,1734881454176,-500.0,0.00019726,2]
[346304322,1734881454185,-500.0,0.00019726,2]